fUST/lending_fUST_20241205
["ID","MTS","AMOUNT","RATE_DAILY","PERIOD"]
[344342031,1733356240236,-500.0,0.00024931,7]
[344342032,1733356240246,-500.0,0.00024931,7]
[344342033,1733356240255,-500.0,0.00024931,7]
[344342034,1733356240265,-591.42,0.00024931,7]
[344342035,1733356240274,-500.0,0.00024931,7]
[344342036,1733356240284,-953.88,0.00024931,7]
[344342037,1733356240296,-500.0,0.00024931,7]
[344342038,1733356240305,-1152.98,0.00024931,7]
[344342039,1733356240314,-500.0,0.00024931,7]
[344342040,1733356240324,-500.0,0.00024931,7]
[344342041,1733356240333,-500.0,0.00024931,7]
[344342042,1733356240343,-500.0,0.00024931,7]
[344342043,1733356240352,-500.0,0.00024931,7]
[344342044,1733356240362,-535.73,0.00024931,7]
[344342045,1733356240371,-1937.49,0.00024931,7]
[344342046,1733356240380,-500.0,0.00024931,7]
[344342047,1733356240389,-500.0,0.00024931,7]
[344342048,1733356240398,-679.76,0.00024931,7]
[344342049,1733356240407,-500.0,0.00024931,7]
[344342050,1733356240417,-492.60029087,0.00024931,7]
[344342051,1733356240426,-500.0,0.00024931,7]
[344342052,1733356240436,-500.0,0.00024931,7]
[344342053,1733356240445,-500.0,0.00024931,7]
[344342054,1733356240454,-500.0,0.00024931,7]
[344342055,1733356240464,-500.0,0.00024931,7]
[344342056,1733356240473,-500.0,0.00024931,7]
[344342057,1733356240482,-500.0,0.00024931,7]
[344342058,1733356240491,-564.29,0.00024931,7]
[344342059,1733356240500,-500.0,0.00024931,7]
[344342060,1733356240510,-2317.42,0.00024931,7]
[344342061,1733356240519,-500.0,0.00024931,7]
[344342062,1733356240529,-500.0,0.00024931,7]
[344342063,1733356240538,-1006.53,0.00024931,7]
[344342064,1733356240552,-655.92,0.00024931,7]
[344342065,1733356240561,-568.45,0.00024931,7]
[344342066,1733356240571,-500.0,0.00024931,7]
[344342067,1733356240581,-576.03603166,0.00024931,7]
[344342068,1733356240591,-599.36,0.00024931,7]
[344342069,1733356240600,-1371.72,0.00024931,7]
[344342070,1733356240612,-500.0,0.00024931,7]
[344342071,1733356240623,-1426.92,0.00024931,7]
[344342072,1733356240633,-963.92,0.00024931,7]
[344342073,1733356240642,-648.01,0.00024931,7]
[344342074,1733356240652,-500.0,0.00024931,7]
[344342075,1733356240663,-500.0,0.00024931,7]
[344342076,1733356240673,-500.0,0.00024931,7]
[344342077,1733356240683,-500.0,0.00024931,7]
[344342078,1733356240694,-500.0,0.00024931,7]
[344342079,1733356240703,-300.0,0.00024932,2]
[344342080,1733356240713,-179.533306,0.00024939,2]
[344342081,1733356240723,-502.74483785,0.00024973,2]
[344342082,1733356240734,-500.0,0.00024973,2]
[344342083,1733356240743,-97591.26092728,0.00025,2]
[344342084,1733356240753,-82716.57929987,0.00025,7]
[344342085,1733356241232,-500.0,0.00024657,7]
[344342086,1733356241242,-500.0,0.00024657,7]
[344342087,1733356241253,-500.0,0.00024931,7]
[344342088,1733356241263,-22677.87838903,0.00025,7]
[344342089,1733356241274,-1043.93802803,0.00025,2]
[344342090,1733356241283,-651679.1169671,0.00025,2]
[344342091,1733356241293,-10364.0,0.00025,2]
[344342092,1733356241303,-166.05135403,0.00025,2]
[344342093,1733356241313,-57141.92416512,0.00025,2]
[344342094,1733356241323,-204.11264877,0.00025,2]
[344342095,1733356241335,-347.96801436,0.00025,2]
[344342096,1733356241348,-830.83691558,0.00025,2]
[344342097,1733356241358,-155.784346,0.00025,10]
[344342098,1733356241368,-300.0,0.00025,2]
[344342099,1733356241378,-151.0,0.00025,8]
[344342100,1733356241388,-206231.0,0.00025,2]
[344342101,1733356241398,-503.16986874,0.00025073,2]
[344342102,1733356241407,-500.0,0.00025073,2]
[344342103,1733356241417,-501.56826379,0.00025073,2]
[344342104,1733356241428,-516.37827679,0.00025073,2]
[344342105,1733356241438,-500.0,0.00025073,2]
[344342106,1733356241448,-500.31221398,0.00025073,2]
[344342107,1733356241459,-500.0,0.00025073,2]
[344342108,1733356241469,-500.0,0.00025073,2]
[344342109,1733356241479,-500.0,0.00025073,2]
[344342110,1733356241489,-501.82622799,0.00025073,2]
[344342111,1733356241499,-502.711171,0.00025073,2]
[344342112,1733356241509,-232650.45869347,0.0002509,2]
[344342113,1733356241519,-222.22890326,0.00025205,7]
[344342114,1733356241529,-500.0,0.00025205,2]
[344342115,1733356241539,-500.0,0.00025205,7]
[344342116,1733356241552,-500.0,0.00025205,7]
[344342117,1733356241563,-500.0,0.00025205,7]
[344342118,1733356241573,-500.0,0.00025205,7]
[344342119,1733356241582,-500.0,0.00025205,7]
[344342120,1733356241592,-500.0,0.00025205,7]
[344342121,1733356241602,-462.82740669,0.00025205,7]
[344342122,1733356241613,-500.0,0.00025205,7]
[344342123,1733356241625,-316.18279811,0.00025205,7]
[344342124,1733356241635,-500.0,0.00025205,7]
[344342125,1733356241646,-500.0,0.00025205,7]
[344342126,1733356241657,-500.0,0.00025205,7]
[344342127,1733356241667,-500.0,0.00025205,7]
[344342128,1733356241677,-500.0,0.00025205,7]
[344342129,1733356241688,-500.0,0.00025205,7]
[344342130,1733356241698,-500.0,0.00025205,7]
[344342131,1733356241708,-500.0,0.00025205,7]
[344342132,1733356241718,-500.0,0.00025205,7]
[344342133,1733356241728,-500.0,0.00025205,7]
[344342134,1733356241738,-500.0,0.00025205,7]
[344342135,1733356241748,-500.0,0.00025205,7]
[344342136,1733356241758,-500.0,0.00025205,7]
[344342137,1733356241768,-438.91092585,0.00025205,7]
[344342138,1733356241778,-500.0,0.00025205,7]
[344342139,1733356241788,-500.0,0.00025205,7]
[344342140,1733356241801,-500.0,0.00025205,7]
[344342141,1733356241811,-500.0,0.00025205,7]
[344342142,1733356241822,-169.84654124,0.00025205,7]
[344342143,1733356241832,-500.0,0.00025205,7]
[344342144,1733356241842,-304.1019695,0.00025205,7]
[344342145,1733356241853,-500.0,0.00025205,7]
[344342146,1733356241864,-500.0,0.00025205,7]
[344342147,1733356241874,-500.0,0.00025205,7]
[344342148,1733356241884,-500.0,0.00025205,7]
[344342149,1733356241895,-500.0,0.00025205,7]
[344342150,1733356241905,-182.57089431,0.00025205,7]
[344342151,1733356241916,-500.0,0.00025205,7]
[344342152,1733356241926,-500.0,0.00025205,7]
[344342153,1733356241936,-718.25,0.00025205,7]
[344342154,1733356241947,-513.23793349,0.00025205,7]
[344342155,1733356241958,-500.0,0.00025205,7]
[344342156,1733356241967,-500.0,0.00025205,7]
[344342157,1733356241977,-500.0,0.00025205,7]
[344342158,1733356241988,-500.0,0.00025205,7]
[344342159,1733356241998,-500.0,0.00025205,7]
[344342160,1733356242009,-500.0,0.00025205,7]
[344342161,1733356242019,-500.0,0.00025205,7]
[344342162,1733356242029,-500.0,0.00025205,7]
[344342163,1733356242039,-500.0,0.00025205,7]
[344342164,1733356242052,-165.09270622,0.00025205,7]
[344342165,1733356242062,-503.65,0.00025205,7]
[344342166,1733356242072,-500.0,0.00025205,7]
[344342167,1733356242082,-500.0,0.00025205,7]
[344342168,1733356242092,-500.0,0.00025205,7]
[344342169,1733356242102,-500.0,0.00025205,7]
[344342170,1733356242112,-500.0,0.00025205,7]
[344342171,1733356242122,-504.38262309,0.00025205,7]
[344342172,1733356242132,-500.0,0.00025205,7]
[344342173,1733356242143,-500.0,0.00025205,7]
[344342174,1733356242152,-500.0,0.00025205,7]
[344342175,1733356242163,-500.0,0.00025205,7]
[344342176,1733356242173,-500.0,0.00025205,7]
[344342177,1733356242183,-500.0,0.00025205,7]
[344342178,1733356242193,-508.85006222,0.00025205,7]
[344342179,1733356242202,-500.0,0.00025205,7]
[344342180,1733356242213,-500.0,0.00025205,7]
[344342181,1733356242224,-612.75837568,0.00025205,7]
[344342182,1733356242234,-203.20834067,0.00025205,7]
[344342183,1733356242244,-500.0,0.00025205,7]
[344342184,1733356242254,-500.0,0.00025205,7]
[344342185,1733356242264,-500.0,0.00025205,7]
[344342186,1733356242274,-500.0,0.00025205,7]
[344342187,1733356242284,-500.0,0.00025205,7]
[344342188,1733356242407,-500.0,0.00025205,7]
[344342189,1733356242417,-500.0,0.00025205,7]
[344342190,1733356242428,-500.0,0.00025205,7]
[344342191,1733356242438,-517.07872995,0.00025205,7]
[344342192,1733356242447,-500.0,0.00025205,7]
[344342193,1733356242457,-500.0,0.00025205,7]
[344342194,1733356242467,-500.0,0.00025205,7]
[344342195,1733356242476,-500.0,0.00025205,7]
[344342196,1733356242486,-500.0,0.00025205,7]
[344342197,1733356242495,-500.0,0.00025205,7]
[344342198,1733356242505,-500.0,0.00025205,7]
[344342199,1733356242515,-1067.46,0.00025205,7]
[344342200,1733356242524,-500.0,0.00025205,7]
[344342201,1733356242534,-500.0,0.00025205,7]
[344342202,1733356242544,-500.0,0.00025205,7]
[344342204,1733356242553,-500.0,0.00025205,7]
[344342206,1733356242563,-500.0,0.00025205,7]
[344342208,1733356242572,-500.0,0.00025205,7]
[344342209,1733356242581,-500.0,0.00025205,7]
[344342210,1733356242590,-500.0,0.00025205,7]
[344342211,1733356242600,-621.86,0.00025205,7]
[344342212,1733356242614,-500.0,0.00025205,7]
[344342213,1733356242623,-500.0,0.00025205,7]
[344342214,1733356242633,-500.0,0.00025205,7]
[344342215,1733356242642,-500.0,0.00025205,7]
[344342217,1733356242653,-500.0,0.00025205,7]
[344342219,1733356242662,-500.0,0.00025205,7]
[344342220,1733356242671,-668.49,0.00025205,7]
[344342221,1733356242681,-500.0,0.00025205,7]
[344342222,1733356242691,-550.73343307,0.00025205,7]
[344342223,1733356242701,-500.0,0.00025205,7]
[344342224,1733356242711,-208.70050483,0.00025205,7]
[344342225,1733356242721,-500.0,0.00025205,7]
[344342226,1733356242730,-500.0,0.00025205,7]
[344342227,1733356242740,-549.47,0.00025205,7]
[344342228,1733356242749,-319.10295559,0.00025205,7]
[344342229,1733356242759,-500.0,0.00025205,7]
[344342230,1733356242768,-500.0,0.00025205,7]
[344342231,1733356242778,-543.72586911,0.00025205,7]
[344342232,1733356242787,-500.0,0.00025205,7]
[344342233,1733356242799,-10260.18,0.00025205,7]
[344342234,1733356242808,-500.0,0.00025205,7]
[344342235,1733356242818,-500.0,0.00025205,7]
[344342236,1733356242828,-500.0,0.00025205,7]
[344342237,1733356242837,-500.0,0.00025205,7]
[344342238,1733356242847,-500.0,0.00025205,7]
[344342239,1733356242856,-500.0,0.00025205,7]
[344342240,1733356242866,-500.0,0.00025205,7]
[344342241,1733356242876,-500.0,0.00025205,7]
[344342242,1733356242886,-606.68,0.00025205,7]
[344342243,1733356242895,-500.0,0.00025205,7]
[344342244,1733356242905,-500.0,0.00025205,7]
[344342245,1733356242915,-4300.83,0.00025205,7]
[344342246,1733356242925,-500.0,0.00025205,7]
[344342247,1733356242934,-500.0,0.00025205,7]
[344342248,1733356242944,-2154.79,0.00025205,7]
[344342249,1733356242954,-500.0,0.00025205,7]
[344342250,1733356242964,-503.86712115,0.00025205,7]
[344342251,1733356242973,-1790.89,0.00025205,7]
[344342252,1733356242983,-500.0,0.00025205,7]
[344342253,1733356242992,-500.0,0.00025205,7]
[344342254,1733356243002,-200.0,0.00025205,7]
[344342255,1733356243011,-500.0,0.00025205,7]
[344342256,1733356243020,-500.0,0.00025205,7]
[344342257,1733356243030,-489.52757093,0.00025205,7]
[344342258,1733356243040,-500.0,0.00025205,7]
[344342260,1733356243051,-500.0,0.00025205,7]
[344342261,1733356243061,-500.0,0.00025205,7]
[344342262,1733356243071,-500.0,0.00025205,7]
[344342263,1733356243080,-500.0,0.00025205,7]
[344342264,1733356243090,-500.0,0.00025205,7]
[344342265,1733356243100,-500.0,0.00025205,7]
[344342266,1733356243109,-500.0,0.00025205,7]
[344342267,1733356243119,-500.0,0.00025205,7]
[344342268,1733356243128,-500.0,0.00025205,7]
[344342269,1733356243137,-556.41,0.00025205,7]
[344342270,1733356243147,-500.0,0.00025205,7]
[344342271,1733356243156,-500.0,0.00025205,7]
[344342272,1733356243166,-500.0,0.00025205,7]
[344342273,1733356243175,-500.0,0.00025205,7]
[344342274,1733356243184,-500.0,0.00025205,7]
[344342275,1733356243194,-500.0,0.00025205,7]
[344342276,1733356243203,-500.0,0.00025205,7]
[344342277,1733356243212,-686.09,0.00025205,7]
[344342278,1733356243221,-500.0,0.00025205,7]
[344342279,1733356243231,-500.0,0.00025205,7]
[344342280,1733356243241,-500.0,0.00025205,7]
[344342281,1733356243251,-591.42,0.00025205,7]
[344342282,1733356243260,-500.0,0.00025205,7]
[344342283,1733356243270,-953.88,0.00025205,7]
[344342284,1733356243280,-505.77941421,0.00025205,7]
[344342285,1733356243289,-1152.98,0.00025205,7]
[344342286,1733356243301,-500.0,0.00025205,7]
[344342287,1733356243310,-500.0,0.00025205,7]
[344342288,1733356243320,-500.0,0.00025205,7]
[344342289,1733356243331,-500.0,0.00025205,7]
[344342290,1733356243340,-500.0,0.00025205,7]
[344342291,1733356243350,-535.73,0.00025205,7]
[344342292,1733356243359,-1937.49,0.00025205,7]
[344342293,1733356243369,-500.0,0.00025205,7]
[344342294,1733356243378,-500.0,0.00025205,7]
[344342295,1733356243388,-679.76,0.00025205,7]
[344342296,1733356243397,-500.0,0.00025205,7]
[344342297,1733356243407,-500.0,0.00025205,7]
[344342298,1733356243417,-500.0,0.00025205,7]
[344342299,1733356243428,-500.0,0.00025205,7]
[344342300,1733356243439,-500.0,0.00025205,7]
[344342301,1733356243449,-483.36294289,0.00025205,7]
[344342302,1733356243459,-564.29,0.00025205,7]
[344342303,1733356243470,-500.0,0.00025205,7]
[344342304,1733356243480,-500.0,0.00025205,7]
[344342305,1733356243490,-2317.42,0.00025205,7]
[344342306,1733356243500,-160.51209693,0.00025205,7]
[344342307,1733356243510,-500.0,0.00025205,7]
[344342308,1733356243519,-1006.53,0.00025205,7]
[344342309,1733356243529,-568.45,0.00025205,7]
[344342310,1733356243539,-655.92,0.00025205,7]
[344342311,1733356243554,-599.36,0.00025205,7]
[344342312,1733356243563,-1371.72,0.00025205,7]
[344342313,1733356243573,-500.0,0.00025205,7]
[344342314,1733356243582,-1426.92,0.00025205,7]
[344342315,1733356243592,-963.92,0.00025205,7]
[344342316,1733356243601,-648.01,0.00025205,7]
[344342317,1733356243611,-500.0,0.00025205,7]
[344342318,1733356243624,-163.28,0.00025205,7]
[344342319,1733356243635,-500.0,0.00025205,7]
[344342320,1733356243644,-500.0,0.00025205,7]
[344342322,1733356243654,-500.0,0.00025205,7]
[344342323,1733356243665,-1000.0,0.00025221,2]
[344342324,1733356243676,-425.8357093,0.0002526,2]
[344342325,1733356243685,-212.226184,0.00025305,2]
[344342326,1733356243696,-167.761,0.00025342,9]
[344342327,1733356243705,-666.0,0.00025379,2]
[344342328,1733356243715,-420.0,0.00025464,2]
[344342329,1733356243724,-500.0,0.00025479,2]
[344342330,1733356243734,-500.0,0.00025479,7]
[344342331,1733356243743,-500.0,0.00025479,7]
[344342332,1733356243753,-500.0,0.00025479,7]
[344342333,1733356243762,-500.0,0.00025479,7]
[344342334,1733356243771,-500.0,0.00025479,7]
[344342335,1733356243781,-500.0,0.00025479,7]
[344342336,1733356243790,-500.0,0.00025479,7]
[344342337,1733356243806,-500.0,0.00025479,7]
[344342340,1733356243823,-500.0,0.00025479,7]
[344342341,1733356243833,-500.0,0.00025479,7]
[344342343,1733356243843,-500.0,0.00025479,7]
[344342345,1733356243852,-500.0,0.00025479,7]
[344342347,1733356243864,-500.0,0.00025479,7]
[344342349,1733356243873,-37.93723948,0.00025479,7]
[344342352,1733356243890,-463.6551719,0.00025479,7]
[344342354,1733356243899,-500.0,0.00025479,7]
[344342356,1733356243909,-500.0,0.00025479,7]
[344342358,1733356243918,-500.0,0.00025479,7]
[344342360,1733356243928,-500.0,0.00025479,7]
[344342362,1733356243937,-500.0,0.00025479,7]
[344342363,1733356243946,-160.22940279,0.00025479,7]
[344342365,1733356243958,-339.77059721,0.00025479,7]
[344342367,1733356243967,-500.0,0.00025479,7]
[344342369,1733356243978,-500.0,0.00025479,7]
[344342371,1733356243987,-500.0,0.00025479,7]
[344342372,1733356243997,-452.30174618,0.00025479,7]
[344342373,1733356244007,-500.0,0.00025479,7]
[344342375,1733356244017,-500.0,0.00025479,7]
[344342377,1733356244026,-500.0,0.00025479,7]
[344342379,1733356244035,-500.0,0.00025479,7]
[344342381,1733356244047,-500.0,0.00025479,7]
[344342382,1733356244057,-500.0,0.00025479,7]
[344342384,1733356244066,-500.0,0.00025479,7]
[344342386,1733356244075,-718.25,0.00025479,7]
[344342388,1733356244085,-501.88024791,0.00025479,7]
[344342389,1733356244094,-500.0,0.00025479,7]
[344342391,1733356244103,-143.79740878,0.00025479,7]
[344342393,1733356244159,-500.0,0.00024657,7]
[344342394,1733356244168,-195.70864234,0.00025479,7]
[344342395,1733356244180,-160.49394888,0.00025479,7]
[344342396,1733356244189,-384.56992477,0.00025479,7]
[344342397,1733356244200,-156.39959314,0.00025479,7]
[344342398,1733356244211,-261.546,0.00025479,7]
[344342399,1733356244223,-82.05440686,0.00025479,7]
[344342400,1733356244232,-500.0,0.00025479,7]
[344342401,1733356244242,-117.51740852,0.00025479,7]
[344342407,1733356244425,-3026.37720922,0.00023326,2]
[344342409,1733356244435,-500.0,0.00024555,2]
[344342411,1733356244444,-232.32907653,0.00024555,2]
[344342413,1733356244453,-245.3731956,0.00024555,2]
[344342415,1733356244462,-236.58638297,0.00024555,2]
[344342417,1733356244471,-500.0,0.00024555,2]
[344342419,1733356244480,-354.28083736,0.00024555,2]
[344342420,1733356244490,-382.48259148,0.00025479,7]
[344342421,1733356244499,-500.0,0.00025479,7]
[344342422,1733356244508,-503.65,0.00025479,7]
[344342423,1733356244517,-500.0,0.00025479,7]
[344342425,1733356244526,-500.0,0.00025479,7]
[344342427,1733356244536,-348.16480999,0.00025479,7]
[344342429,1733356244547,-500.0,0.00025479,7]
[344342430,1733356244556,-500.0,0.00025479,7]
[344342431,1733356244565,-500.0,0.00025479,7]
[344342432,1733356244574,-500.0,0.00025479,7]
[344342433,1733356244583,-500.0,0.00025479,7]
[344342434,1733356244593,-612.72039027,0.00025479,7]
[344342435,1733356244603,-500.0,0.00025479,7]
[344342436,1733356244618,-500.0,0.00025479,7]
[344342437,1733356244629,-500.0,0.00025479,7]
[344342438,1733356244638,-500.0,0.00025479,7]
[344342439,1733356244648,-500.0,0.00025479,7]
[344342440,1733356244658,-500.0,0.00025479,7]
[344342441,1733356244668,-391.82137785,0.00025479,7]
[344342442,1733356244677,-500.0,0.00025479,7]
[344342443,1733356244688,-500.0,0.00025479,7]
[344342444,1733356244697,-500.0,0.00025479,7]
[344342445,1733356244707,-500.0,0.00025479,7]
[344342446,1733356244716,-500.0,0.00025479,7]
[344342447,1733356244725,-500.0,0.00025479,7]
[344342448,1733356244734,-500.0,0.00025479,7]
[344342449,1733356244745,-500.0,0.00025479,7]
[344342450,1733356244755,-500.0,0.00025479,7]
[344342451,1733356244767,-500.0,0.00025479,7]
[344342452,1733356244776,-1067.46,0.00025479,7]
[344342453,1733356244785,-508.20619502,0.00025479,7]
[344342454,1733356244797,-152.50136542,0.00025479,7]
[344342455,1733356244806,-500.0,0.00025479,7]
[344342456,1733356244815,-354.83590598,0.00025479,7]
[344342457,1733356244825,-500.0,0.00025479,7]
[344342458,1733356244834,-500.0,0.00025479,7]
[344342459,1733356244845,-500.0,0.00025479,7]
[344342460,1733356244855,-500.0,0.00025479,7]
[344342461,1733356244865,-621.86,0.00025479,7]
[344342462,1733356244977,-500.0,0.00025479,7]
[344342463,1733356244988,-500.0,0.00025479,7]
[344342464,1733356244998,-526.69788102,0.00025479,7]
[344342465,1733356245008,-500.0,0.00025479,7]
[344342466,1733356245017,-500.0,0.00025479,7]
[344342467,1733356245027,-668.49,0.00025479,7]
[344342468,1733356245036,-500.0,0.00025479,7]
[344342469,1733356245048,-572.50002715,0.00025479,7]
[344342470,1733356245058,-500.0,0.00025479,7]
[344342471,1733356245067,-500.0,0.00025479,7]
[344342472,1733356245078,-150.65,0.00025479,7]
[344342473,1733356245087,-10260.18,0.00025479,7]
[344342474,1733356245097,-500.0,0.00025479,7]
[344342475,1733356245107,-500.0,0.00025479,7]
[344342476,1733356245117,-500.0,0.00025479,7]
[344342477,1733356245128,-500.0,0.00025479,7]
[344342478,1733356245137,-500.0,0.00025479,7]
[344342479,1733356245147,-500.0,0.00025479,7]
[344342480,1733356245156,-262.97134377,0.00025479,7]
[344342481,1733356245166,-500.0,0.00025479,7]
[344342482,1733356245177,-500.0,0.00025479,7]
[344342483,1733356245186,-4300.83,0.00025479,7]
[344342484,1733356245196,-500.0,0.00025479,7]
[344342485,1733356245205,-500.0,0.00025479,7]
[344342486,1733356245215,-2154.79,0.00025479,7]
[344342487,1733356245225,-500.0,0.00025479,7]
[344342488,1733356245234,-1790.89,0.00025479,7]
[344342489,1733356245243,-500.0,0.00025479,7]
[344342490,1733356245253,-500.0,0.00025479,7]
[344342491,1733356245262,-200.0,0.00025479,7]
[344342492,1733356245272,-500.0,0.00025479,7]
[344342493,1733356245283,-500.0,0.00025479,7]
[344342494,1733356245295,-500.0,0.00025479,7]
[344342495,1733356245306,-500.0,0.00025479,7]
[344342496,1733356245315,-500.0,0.00025479,7]
[344342497,1733356245324,-500.0,0.00025479,7]
[344342498,1733356245334,-500.0,0.00025479,7]
[344342499,1733356245344,-500.0,0.00025479,7]
[344342500,1733356245353,-500.0,0.00025479,7]
[344342501,1733356245363,-500.0,0.00025479,7]
[344342502,1733356245372,-500.0,0.00025479,7]
[344342503,1733356245381,-556.41,0.00025479,7]
[344342504,1733356245390,-500.0,0.00025479,7]
[344342505,1733356245400,-500.0,0.00025479,7]
[344342506,1733356245410,-500.0,0.00025479,7]
[344342507,1733356245419,-500.0,0.00025479,7]
[344342508,1733356245429,-500.0,0.00025479,7]
[344342509,1733356245438,-500.0,0.00025479,7]
[344342510,1733356245449,-500.0,0.00025479,7]
[344342511,1733356245458,-686.09,0.00025479,7]
[344342512,1733356245468,-500.0,0.00025479,7]
[344342513,1733356245477,-500.0,0.00025479,7]
[344342514,1733356245487,-500.0,0.00025479,7]
[344342515,1733356245496,-591.42,0.00025479,7]
[344342516,1733356245506,-561.88810177,0.00025479,7]
[344342517,1733356245516,-953.88,0.00025479,7]
[344342518,1733356245525,-1152.98,0.00025479,7]
[344342519,1733356245535,-301.20036827,0.00025479,7]
[344342520,1733356245545,-500.0,0.00025479,7]
[344342521,1733356245555,-500.0,0.00025479,7]
[344342522,1733356245564,-500.0,0.00025479,7]
[344342523,1733356245574,-500.0,0.00025479,7]
[344342524,1733356245583,-535.73,0.00025479,7]
[344342525,1733356245592,-1937.49,0.00025479,7]
[344342526,1733356245601,-500.0,0.00025479,7]
[344342527,1733356245611,-500.0,0.00025479,7]
[344342528,1733356245624,-679.76,0.00025479,7]
[344342529,1733356245634,-500.0,0.00025479,7]
[344342530,1733356245644,-500.0,0.00025479,7]
[344342531,1733356245655,-619.71,0.00025479,7]
[344342533,1733356245665,-500.0,0.00025479,7]
[344342534,1733356245675,-500.0,0.00025479,7]
[344342536,1733356245685,-564.29,0.00025479,7]
[344342538,1733356245696,-500.0,0.00025479,7]
[344342540,1733356245706,-500.0,0.00025479,7]
[344342542,1733356245715,-2317.42,0.00025479,7]
[344342544,1733356245725,-500.0,0.00025479,7]
[344342546,1733356245734,-1006.53,0.00025479,7]
[344342547,1733356245743,-568.45,0.00025479,7]
[344342548,1733356245752,-655.92,0.00025479,7]
[344342549,1733356245762,-599.36,0.00025479,7]
[344342550,1733356245772,-1371.72,0.00025479,7]
[344342551,1733356245781,-500.0,0.00025479,7]
[344342552,1733356245791,-1426.92,0.00025479,7]
[344342554,1733356245803,-963.92,0.00025479,7]
[344342556,1733356245812,-648.01,0.00025479,7]
[344342558,1733356245822,-500.0,0.00025479,7]
[344342560,1733356245832,-500.0,0.00025479,7]
[344342562,1733356245841,-500.0,0.00025479,7]
[344342563,1733356245851,-259.4757866,0.00025479,7]
[344342564,1733356245860,-1000.0,0.00025521,2]
[344342565,1733356245871,-179.533306,0.00025531,2]
[344342566,1733356245880,-1563.1214559,0.00025556,2]
[344342567,1733356245890,-156.8894864,0.00025562,2]
[344342568,1733356245899,-153.0,0.00025562,2]
[344342569,1733356245909,-153.0,0.00025562,2]
[344342570,1733356245918,-500.0,0.00025621,2]
[344342571,1733356245927,-503.66614666,0.00025621,2]
[344342573,1733356245938,-1000.0,0.00025621,2]
[344342575,1733356245947,-1000.0,0.00025621,2]
[344342577,1733356245957,-1000.0,0.00025621,2]
[344342578,1733356245967,-207.4,0.00025677,4]
[344342579,1733356245976,-160.0,0.00025752,2]
[344342581,1733356245986,-500.0,0.00025753,2]
[344342582,1733356245995,-500.0,0.00025753,7]
[344342584,1733356246005,-500.0,0.00025753,7]
[344342585,1733356246015,-500.0,0.00025753,7]
[344342586,1733356246025,-500.0,0.00025753,7]
[344342587,1733356246034,-500.0,0.00025753,7]
[344342588,1733356246046,-646.68858875,0.00025753,7]
[344342589,1733356246056,-500.0,0.00025753,7]
[344342590,1733356246066,-208.07236486,0.00025753,7]
[344342592,1733356246076,-500.0,0.00025753,7]
[344342594,1733356246086,-540.89218707,0.00025753,7]
[344342595,1733356246095,-500.0,0.00025753,7]
[344342597,1733356246105,-500.0,0.00025753,7]